[Event "Titled Tuesday Blitz November 07 Late 2023"]
[White "Inepton_Fermion"]
[Black "GatoRojo150"]
[WhiteElo "2408"]
[BlackElo "2595"]
[Result "1-0"]
[Round "8"]
[TimeControl "180+1"]
[Date "2023.11.07"]
[WhiteClock "0:00:03"]
[BlackClock "0:00:19"]
[Board "76"]

1. Nf3 {[%clk 0:03:00]}  d5 {[%clk 0:02:59]} 2. b3 {[%clk 0:03:01]}  c5 {[%clk 0:02:57]} 3. e3 {[%clk 0:03:00]}  Nc6 {[%clk 0:02:57]} 4. Bb5 {[%clk 0:02:59]}  Bd7 {[%clk 0:02:55]} 5. Bb2 {[%clk 0:02:57]}  Nf6 {[%clk 0:02:54]} 6. O-O {[%clk 0:02:56]}  e6 {[%clk 0:02:54]} 7. d4 {[%clk 0:02:55]}  cxd4 {[%clk 0:02:50]} 8. exd4 {[%clk 0:02:56]}  Ne4 {[%clk 0:02:49]} 9. Nbd2 {[%clk 0:02:49]}  f5 {[%clk 0:02:49]} 10. c4 {[%clk 0:02:42]}  a6 {[%clk 0:02:46]} 11. Bxc6 {[%clk 0:02:41]}  bxc6 {[%clk 0:02:47]} 12. Nxe4 {[%clk 0:02:35]}  fxe4 {[%clk 0:02:28]} 13. Ne5 {[%clk 0:02:34]}  g6 {[%clk 0:02:25]} 14. f3 {[%clk 0:02:30]}  e3 {[%clk 0:02:20]} 15. Qd3 {[%clk 0:02:25]}  Bh6 {[%clk 0:02:18]} 16. Bc1 {[%clk 0:02:21]}  O-O {[%clk 0:02:07]} 17. Bxe3 {[%clk 0:02:12]}  Bg7 {[%clk 0:02:07]} 18. Qd2 {[%clk 0:01:35]}  a5 {[%clk 0:01:57]} 19. Bh6 {[%clk 0:01:28]}  Qe7 {[%clk 0:01:30]} 20. Bxg7 {[%clk 0:01:27]}  Qxg7 {[%clk 0:01:31]} 21. Rfe1 {[%clk 0:01:22]}  a4 {[%clk 0:01:29]} 22. Qc3 {[%clk 0:01:14]}  Be8 {[%clk 0:01:23]} 23. Qb4 {[%clk 0:01:07]}  Rf4 {[%clk 0:01:10]} 24. Qc5 {[%clk 0:01:02]}  h5 {[%clk 0:00:59]} 25. Nd3 {[%clk 0:00:48]}  Qxd4+ {[%clk 0:00:52]} 26. Qxd4 {[%clk 0:00:42]}  Rxd4 {[%clk 0:00:53]} 27. Ne5 {[%clk 0:00:43]}  Rd2 {[%clk 0:00:52]} 28. Red1 {[%clk 0:00:37]}  Rb2 {[%clk 0:00:48]} 29. Rdb1 {[%clk 0:00:35]}  Re2 {[%clk 0:00:47]} 30. Re1 {[%clk 0:00:35]}  Rxe1+ {[%clk 0:00:38]} 31. Rxe1 {[%clk 0:00:33]}  axb3 {[%clk 0:00:39]} 32. axb3 {[%clk 0:00:34]}  Ra3 {[%clk 0:00:39]} 33. Rb1 {[%clk 0:00:30]}  Kg7 {[%clk 0:00:39]} 34. f4 {[%clk 0:00:30]}  Kf6 {[%clk 0:00:38]} 35. Kf2 {[%clk 0:00:23]}  g5 {[%clk 0:00:39]} 36. g3 {[%clk 0:00:23]}  Ra2+ {[%clk 0:00:38]} 37. Kg1 {[%clk 0:00:20]}  h4 {[%clk 0:00:38]} 38. Rf1 {[%clk 0:00:15]}  gxf4 {[%clk 0:00:37]} 39. Ng4+ {[%clk 0:00:15]}  Kg5 {[%clk 0:00:36]} 40. Rxf4 {[%clk 0:00:13]}  hxg3 {[%clk 0:00:36]} 41. hxg3 {[%clk 0:00:13]}  Rb2 {[%clk 0:00:34]} 42. cxd5 {[%clk 0:00:10]}  cxd5 {[%clk 0:00:33]} 43. b4 {[%clk 0:00:10]}  Rb3 {[%clk 0:00:32]} 44. Kg2 {[%clk 0:00:07]}  Bg6 {[%clk 0:00:32]} 45. Ne5 {[%clk 0:00:05]}  Be4+ {[%clk 0:00:32]} 46. Kf2 {[%clk 0:00:05]}  Rxb4 {[%clk 0:00:29]} 47. Nf7+ {[%clk 0:00:02]}  Kg6 {[%clk 0:00:29]} 48. Ne5+ {[%clk 0:00:03]}  Kg7 {[%clk 0:00:28]} 49. g4 {[%clk 0:00:02]}  Rb2+ {[%clk 0:00:27]} 50. Kg3 {[%clk 0:00:01]}  Rg2+ {[%clk 0:00:27]} 51. Kh4 {[%clk 0:00:02]}  Rg1 {[%clk 0:00:27]} 52. Kg5 {[%clk 0:00:02]}  Kg8 {[%clk 0:00:24]} 53. Rf6 {[%clk 0:00:01]}  d4 {[%clk 0:00:20]} 54. Rxe6 {[%clk 0:00:02]}  d3 {[%clk 0:00:20]} 55. Rd6 {[%clk 0:00:02]}  Rg2 {[%clk 0:00:19]} 56. Rd8+ {[%clk 0:00:01]}  Kg7 {[%clk 0:00:19]} 57. Rd7+ {[%clk 0:00:02]}  Kf8 {[%clk 0:00:20]} 58. Ng6+ {[%clk 0:00:02]}  Ke8 {[%clk 0:00:20]} 59. Re7+ {[%clk 0:00:02]}  Kd8 {[%clk 0:00:20]} 60. Rxe4 {[%clk 0:00:02]}  d2 {[%clk 0:00:21]} 61. Rd4+ {[%clk 0:00:03]}  Kc7 {[%clk 0:00:21]} 62. Nf4 {[%clk 0:00:03]}  Kb6 {[%clk 0:00:21]} 63. Nxg2 {[%clk 0:00:02]}  d1=Q {[%clk 0:00:19]} 64. Rxd1 {[%clk 0:00:03]} 1-0


[Site "https://www.chess.com"]

[Event "Titled Tuesday Blitz November 07 Late 2023"]
[White "PapaieDudu"]
[Black "Toncheva, Nadya"]
[BlackFideId "2924056"]
[WhiteElo "2383"]
[BlackElo "2551"]
[Result "0-1"]
[Round "8"]
[TimeControl "180+1"]
[Date "2023.11.07"]
[WhiteClock "0:00:25"]
[BlackClock "0:00:26"]
[Board "77"]

1. e4 {[%clk 0:03:00]}  c5 {[%clk 0:03:00]} 2. Nf3 {[%clk 0:03:01]}  Nc6 {[%clk 0:02:59]} 3. d4 {[%clk 0:03:01]}  cxd4 {[%clk 0:03:00]} 4. c3 {[%clk 0:03:02]}  d3 {[%clk 0:02:59]} 5. Bxd3 {[%clk 0:03:02]}  g6 {[%clk 0:02:59]} 6. O-O {[%clk 0:03:01]}  Bg7 {[%clk 0:03:00]} 7. Re1 {[%clk 0:03:01]}  Nf6 {[%clk 0:03:00]} 8. e5 {[%clk 0:03:01]}  Ng4 {[%clk 0:02:42]} 9. Bf4 {[%clk 0:02:55]}  O-O {[%clk 0:02:32]} 10. h3 {[%clk 0:02:48]}  Nh6 {[%clk 0:02:32]} 11. Qd2 {[%clk 0:02:45]}  Nf5 {[%clk 0:02:27]} 12. g4 {[%clk 0:02:39]}  d6 {[%clk 0:02:08]} 13. gxf5 {[%clk 0:02:35]}  dxe5 {[%clk 0:02:07]} 14. Nxe5 {[%clk 0:02:23]}  Nxe5 {[%clk 0:02:07]} 15. Bxe5 {[%clk 0:02:23]}  Bxf5 {[%clk 0:02:06]} 16. Bxg7 {[%clk 0:02:19]}  Kxg7 {[%clk 0:01:54]} 17. Bxf5 {[%clk 0:02:16]}  gxf5 {[%clk 0:01:47]} 18. Qf4 {[%clk 0:01:55]}  e6 {[%clk 0:01:44]} 19. Nd2 {[%clk 0:01:53]}  Rg8 {[%clk 0:01:39]} 20. Nf3 {[%clk 0:01:51]}  Kh8+ {[%clk 0:01:32]} 21. Kh2 {[%clk 0:01:51]}  Qb6 {[%clk 0:01:25]} 22. Re2 {[%clk 0:01:41]}  Rad8 {[%clk 0:01:23]} 23. Rg1 {[%clk 0:01:39]}  Rxg1 {[%clk 0:01:19]} 24. Kxg1 {[%clk 0:01:39]}  Qa6 {[%clk 0:01:10]} 25. Qe5+ {[%clk 0:01:34]}  Kg8 {[%clk 0:01:09]} 26. Qg3+ {[%clk 0:01:09]}  Kh8 {[%clk 0:01:07]} 27. Ne5 {[%clk 0:00:52]}  Rd1+ {[%clk 0:00:39]} 28. Kh2 {[%clk 0:00:52]}  h6 {[%clk 0:00:38]} 29. Nxf7+ {[%clk 0:00:43]}  Kh7 {[%clk 0:00:38]} 30. Qh4 {[%clk 0:00:36]}  Qxe2 {[%clk 0:00:31]} 31. Qxh6+ {[%clk 0:00:34]}  Kg8 {[%clk 0:00:31]} 32. Qg6+ {[%clk 0:00:31]}  Kf8 {[%clk 0:00:32]} 33. Qh6+ {[%clk 0:00:29]}  Kxf7 {[%clk 0:00:30]} 34. Qh7+ {[%clk 0:00:30]}  Ke8 {[%clk 0:00:28]} 35. Qg8+ {[%clk 0:00:29]}  Kd7 {[%clk 0:00:29]} 36. Qf7+ {[%clk 0:00:28]}  Kc8 {[%clk 0:00:28]} 37. Qf8+ {[%clk 0:00:26]}  Rd8 {[%clk 0:00:27]} 38. Qc5+ {[%clk 0:00:26]}  Kb8 {[%clk 0:00:27]} 39. Qe5+ {[%clk 0:00:25]}  Qxe5+ {[%clk 0:00:26]} 0-1


[Site "https://www.chess.com"]

[Event "Titled Tuesday Blitz November 07 Late 2023"]
[White "Cristi_Coca"]
[Black "Becerra, Juan David"]
[BlackFideId "4404998"]
[WhiteElo "2478"]
[BlackElo "2371"]
[Result "1-0"]
[Round "8"]
[TimeControl "180+1"]
[Date "2023.11.07"]
[WhiteClock "0:00:22"]
[BlackClock "0:00:00"]
[Board "80"]

1. e4 {[%clk 0:03:00]}  e6 {[%clk 0:02:59]} 2. d4 {[%clk 0:03:01]}  d5 {[%clk 0:02:58]} 3. Nc3 {[%clk 0:03:01]}  Bb4 {[%clk 0:02:57]} 4. exd5 {[%clk 0:03:01]}  exd5 {[%clk 0:02:57]} 5. Bd3 {[%clk 0:03:01]}  Nc6 {[%clk 0:02:56]} 6. Nf3 {[%clk 0:03:01]}  Nge7 {[%clk 0:02:55]} 7. O-O {[%clk 0:03:01]}  Bf5 {[%clk 0:02:56]} 8. Bxf5 {[%clk 0:02:59]}  Nxf5 {[%clk 0:02:57]} 9. Re1+ {[%clk 0:03:00]}  Be7 {[%clk 0:02:53]} 10. Ne2 {[%clk 0:02:38]}  Qd7 {[%clk 0:02:48]} 11. c3 {[%clk 0:02:37]}  h5 {[%clk 0:02:45]} 12. Ng3 {[%clk 0:02:34]}  f6 {[%clk 0:02:40]} 13. Nxf5 {[%clk 0:02:26]}  Qxf5 {[%clk 0:02:41]} 14. Nh4 {[%clk 0:02:26]}  Qh7 {[%clk 0:02:15]} 15. b4 {[%clk 0:02:13]}  g5 {[%clk 0:02:13]} 16. b5 {[%clk 0:02:13]}  Na5 {[%clk 0:02:09]} 17. Nf3 {[%clk 0:02:03]}  O-O-O {[%clk 0:02:02]} 18. Qa4 {[%clk 0:01:58]}  b6 {[%clk 0:02:01]} 19. c4 {[%clk 0:01:49]}  g4 {[%clk 0:01:51]} 20. Nh4 {[%clk 0:01:41]}  f5 {[%clk 0:01:24]} 21. Nxf5 {[%clk 0:01:28]}  Qxf5 {[%clk 0:01:20]} 22. Rxe7 {[%clk 0:01:28]}  dxc4 {[%clk 0:01:10]} 23. Bd2 {[%clk 0:01:26]}  Rhf8 {[%clk 0:01:05]} 24. Rf1 {[%clk 0:01:21]}  Qf6 {[%clk 0:00:56]} 25. Rh7 {[%clk 0:01:08]}  Rxd4 {[%clk 0:00:34]} 26. Bxa5 {[%clk 0:01:05]}  bxa5 {[%clk 0:00:34]} 27. g3 {[%clk 0:00:51]}  Qb6 {[%clk 0:00:27]} 28. Qc2 {[%clk 0:00:36]}  Qxb5 {[%clk 0:00:17]} 29. Qg6 {[%clk 0:00:24]}  Rd6 {[%clk 0:00:00]} 30. Qg7 {[%clk 0:00:22]} 1-0


[Site "https://www.chess.com"]

[Event "Titled Tuesday Blitz November 07 Late 2023"]
[White "Marcziter, Dmitrii"]
[Black "szachmistrz2500"]
[WhiteFideId "13900765"]
[WhiteElo "2348"]
[BlackElo "2450"]
[Result "1-0"]
[Round "8"]
[TimeControl "180+1"]
[Date "2023.11.07"]
[WhiteClock "0:01:32"]
[BlackClock "0:01:31"]
[Board "83"]

1. e4 {[%clk 0:03:00]}  c5 {[%clk 0:02:59]} 2. d4 {[%clk 0:02:57]}  cxd4 {[%clk 0:02:56]} 3. c3 {[%clk 0:02:58]}  dxc3 {[%clk 0:02:53]} 4. Nxc3 {[%clk 0:02:56]}  Nc6 {[%clk 0:02:53]} 5. Nf3 {[%clk 0:02:55]}  e6 {[%clk 0:02:54]} 6. Bf4 {[%clk 0:02:54]}  Nge7 {[%clk 0:02:51]} 7. Bd3 {[%clk 0:02:49]}  Ng6 {[%clk 0:02:49]} 8. Bg3 {[%clk 0:02:48]}  a6 {[%clk 0:02:48]} 9. O-O {[%clk 0:02:44]}  Be7 {[%clk 0:02:47]} 10. Qe2 {[%clk 0:02:37]}  b5 {[%clk 0:02:45]} 11. Rfe1 {[%clk 0:02:34]}  O-O {[%clk 0:02:44]} 12. Rad1 {[%clk 0:02:25]}  d6 {[%clk 0:02:39]} 13. Bb1 {[%clk 0:02:20]}  Bb7 {[%clk 0:02:37]} 14. e5 {[%clk 0:02:08]}  d5 {[%clk 0:02:35]} 15. h4 {[%clk 0:02:02]}  b4 {[%clk 0:02:11]} 16. Ne4 {[%clk 0:01:57]}  Nxh4 {[%clk 0:01:54]} 17. Nxh4 {[%clk 0:01:54]}  Bxh4 {[%clk 0:01:54]} 18. Qh5 {[%clk 0:01:48]}  f5 {[%clk 0:01:51]} 19. Bxh4 {[%clk 0:01:44]}  Qc7 {[%clk 0:01:39]} 20. Ng5 {[%clk 0:01:38]}  h6 {[%clk 0:01:38]} 21. Nxe6 {[%clk 0:01:37]}  Qf7 {[%clk 0:01:38]} 22. Qxf7+ {[%clk 0:01:34]}  Rxf7 {[%clk 0:01:31]} 23. Nc5 {[%clk 0:01:32]} 1-0


[Site "https://www.chess.com"]

[Event "Titled Tuesday Blitz November 07 Late 2023"]
[White "ExchangeAB"]
[Black "Dwilewicz, Katarzyna"]
[BlackFideId "1148486"]
[WhiteElo "2440"]
[BlackElo "2357"]
[Result "0-1"]
[Round "8"]
[TimeControl "180+1"]
[Date "2023.11.07"]
[WhiteClock "0:00:12"]
[BlackClock "0:00:22"]
[Board "84"]

1. Nf3 {[%clk 0:03:00]}  c5 {[%clk 0:02:58]} 2. e3 {[%clk 0:03:01]}  Nc6 {[%clk 0:02:55]} 3. b3 {[%clk 0:03:02]}  d6 {[%clk 0:02:53]} 4. Bb2 {[%clk 0:03:02]}  e5 {[%clk 0:02:54]} 5. d3 {[%clk 0:02:57]}  f5 {[%clk 0:02:53]} 6. g3 {[%clk 0:02:57]}  Nf6 {[%clk 0:02:50]} 7. Bg2 {[%clk 0:02:57]}  Be7 {[%clk 0:02:48]} 8. O-O {[%clk 0:02:57]}  O-O {[%clk 0:02:48]} 9. h3 {[%clk 0:02:43]}  Be6 {[%clk 0:02:48]} 10. e4 {[%clk 0:02:41]}  f4 {[%clk 0:02:44]} 11. gxf4 {[%clk 0:02:37]}  exf4 {[%clk 0:02:40]} 12. Nbd2 {[%clk 0:02:15]}  Nd7 {[%clk 0:02:37]} 13. Nc4 {[%clk 0:02:12]}  Nde5 {[%clk 0:02:37]} 14. Kh2 {[%clk 0:02:01]}  Qe8 {[%clk 0:02:35]} 15. Ncxe5 {[%clk 0:01:48]}  dxe5 {[%clk 0:02:34]} 16. Nxe5 {[%clk 0:01:39]}  Bd6 {[%clk 0:02:29]} 17. Nf3 {[%clk 0:01:36]}  Qh5 {[%clk 0:02:24]} 18. Rh1 {[%clk 0:01:00]}  Rae8 {[%clk 0:02:22]} 19. Kg1 {[%clk 0:01:00]}  Bd7 {[%clk 0:02:12]} 20. Kf1 {[%clk 0:01:00]}  Re6 {[%clk 0:02:09]} 21. h4 {[%clk 0:00:59]}  Rg6 {[%clk 0:02:08]} 22. Bh3 {[%clk 0:00:57]}  Bxh3+ {[%clk 0:01:42]} 23. Rxh3 {[%clk 0:00:58]}  Qg4 {[%clk 0:01:37]} 24. Rh2 {[%clk 0:00:58]}  Re8 {[%clk 0:01:14]} 25. h5 {[%clk 0:00:55]}  Rh6 {[%clk 0:01:08]} 26. Ke2 {[%clk 0:00:54]}  Rxh5 {[%clk 0:01:03]} 27. Rxh5 {[%clk 0:00:54]}  Qxh5 {[%clk 0:01:03]} 28. Qh1 {[%clk 0:00:54]}  Qxh1 {[%clk 0:00:58]} 29. Rxh1 {[%clk 0:00:55]}  h6 {[%clk 0:00:55]} 30. Nd2 {[%clk 0:00:53]}  b5 {[%clk 0:00:52]} 31. f3 {[%clk 0:00:53]}  Re6 {[%clk 0:00:50]} 32. c3 {[%clk 0:00:53]}  g5 {[%clk 0:00:50]} 33. d4 {[%clk 0:00:53]}  Rg6 {[%clk 0:00:39]} 34. d5 {[%clk 0:00:51]}  Ne5 {[%clk 0:00:38]} 35. c4 {[%clk 0:00:51]}  b4 {[%clk 0:00:36]} 36. a3 {[%clk 0:00:39]}  a5 {[%clk 0:00:31]} 37. axb4 {[%clk 0:00:39]}  axb4 {[%clk 0:00:31]} 38. Rg1 {[%clk 0:00:34]}  h5 {[%clk 0:00:29]} 39. Nf1 {[%clk 0:00:28]}  g4 {[%clk 0:00:28]} 40. Nh2 {[%clk 0:00:24]}  g3 {[%clk 0:00:26]} 41. Nf1 {[%clk 0:00:21]}  h4 {[%clk 0:00:26]} 42. Nh2 {[%clk 0:00:15]}  gxh2 {[%clk 0:00:23]} 43. Rh1 {[%clk 0:00:12]}  Rg2+ {[%clk 0:00:22]} 0-1


[Site "https://www.chess.com"]

[Event "Titled Tuesday Blitz November 07 Late 2023"]
[White "Weisz, Bryan"]
[Black "patzersame"]
[WhiteFideId "30934133"]
[WhiteElo "2436"]
[BlackElo "2337"]
[Result "0-1"]
[Round "8"]
[TimeControl "180+1"]
[Date "2023.11.07"]
[WhiteClock "0:00:08"]
[BlackClock "0:00:15"]
[Board "86"]

1. c3 {[%clk 0:03:00]}  b5 {[%clk 0:02:58]} 2. a4 {[%clk 0:02:58]}  bxa4 {[%clk 0:02:53]} 3. e4 {[%clk 0:02:38]}  Bb7 {[%clk 0:02:51]} 4. Rxa4 {[%clk 0:02:35]}  Bc6 {[%clk 0:02:49]} 5. Rd4 {[%clk 0:02:29]}  e5 {[%clk 0:02:49]} 6. Rd3 {[%clk 0:02:29]}  Bc5 {[%clk 0:02:28]} 7. Rg3 {[%clk 0:02:19]}  Bxe4 {[%clk 0:02:09]} 8. b4 {[%clk 0:02:00]}  Bb6 {[%clk 0:01:59]} 9. Na3 {[%clk 0:02:00]}  Nf6 {[%clk 0:01:42]} 10. Rxg7 {[%clk 0:01:58]}  Bg6 {[%clk 0:01:39]} 11. d4 {[%clk 0:01:47]}  exd4 {[%clk 0:01:20]} 12. Qf3 {[%clk 0:01:29]}  Nc6 {[%clk 0:01:14]} 13. Bg5 {[%clk 0:01:27]}  Qe7+ {[%clk 0:00:45]} 14. Kd1 {[%clk 0:01:27]}  Bh5 {[%clk 0:00:37]} 15. g4 {[%clk 0:01:18]}  Bxg4 {[%clk 0:00:35]} 16. Qxg4 {[%clk 0:01:16]}  Nxg4 {[%clk 0:00:36]} 17. Bxe7 {[%clk 0:01:16]}  Nxf2+ {[%clk 0:00:34]} 18. Ke1 {[%clk 0:01:13]}  dxc3 {[%clk 0:00:29]} 19. Bc5 {[%clk 0:01:08]}  Nxh1 {[%clk 0:00:25]} 20. Bg2 {[%clk 0:01:04]}  O-O-O {[%clk 0:00:19]} 21. Bxh1 {[%clk 0:01:04]}  Bxc5 {[%clk 0:00:19]} 22. bxc5 {[%clk 0:01:04]}  Rde8+ {[%clk 0:00:20]} 23. Kd1 {[%clk 0:00:58]}  Rhg8 {[%clk 0:00:20]} 24. Rxg8 {[%clk 0:00:58]}  Rxg8 {[%clk 0:00:20]} 25. Ne2 {[%clk 0:00:58]}  Nb4 {[%clk 0:00:18]} 26. Be4 {[%clk 0:00:54]}  Rg4 {[%clk 0:00:17]} 27. Nxc3 {[%clk 0:00:50]}  Rh4 {[%clk 0:00:17]} 28. Nab5 {[%clk 0:00:46]}  a6 {[%clk 0:00:16]} 29. Nd4 {[%clk 0:00:43]}  Rxh2 {[%clk 0:00:16]} 30. Nf3 {[%clk 0:00:39]}  Rg2 {[%clk 0:00:14]} 31. Ne5 {[%clk 0:00:36]}  Rg3 {[%clk 0:00:14]} 32. Kd2 {[%clk 0:00:29]}  f6 {[%clk 0:00:13]} 33. Nf3 {[%clk 0:00:23]}  f5 {[%clk 0:00:13]} 34. Ba8 {[%clk 0:00:17]}  c6 {[%clk 0:00:13]} 35. Ne5 {[%clk 0:00:14]}  Kb8 {[%clk 0:00:12]} 36. Bxc6 {[%clk 0:00:08]}  dxc6 {[%clk 0:00:13]} 37. Ne2 {[%clk 0:00:05]}  Ra3 {[%clk 0:00:12]} 38. Nd4 {[%clk 0:00:06]}  h5 {[%clk 0:00:10]} 39. Nxf5 {[%clk 0:00:05]}  Ra2+ {[%clk 0:00:08]} 40. Kc3 {[%clk 0:00:05]}  Nd5+ {[%clk 0:00:09]} 41. Kd4 {[%clk 0:00:06]}  Kc7 {[%clk 0:00:09]} 42. Nc4 {[%clk 0:00:02]}  Ra4 {[%clk 0:00:07]} 43. Kd3 {[%clk 0:00:01]}  Nf4+ {[%clk 0:00:07]} 44. Kc3 {[%clk 0:00:02]}  Ne6 {[%clk 0:00:08]} 45. Kb3 {[%clk 0:00:01]}  Nxc5+ {[%clk 0:00:09]} 46. Kc3 {[%clk 0:00:02]}  Ne6 {[%clk 0:00:09]} 47. Ncd6 {[%clk 0:00:03]}  Rg4 {[%clk 0:00:08]} 48. Ne8+ {[%clk 0:00:03]}  Kb6 {[%clk 0:00:09]} 49. Nfd6 {[%clk 0:00:03]}  h4 {[%clk 0:00:09]} 50. Nc8+ {[%clk 0:00:03]}  Ka5 {[%clk 0:00:09]} 51. Ned6 {[%clk 0:00:03]}  Rg3+ {[%clk 0:00:09]} 52. Kc4 {[%clk 0:00:03]}  Rg4+ {[%clk 0:00:10]} 53. Kb3 {[%clk 0:00:04]}  h3 {[%clk 0:00:10]} 54. Nc4+ {[%clk 0:00:04]}  Rxc4 {[%clk 0:00:11]} 55. Kxc4 {[%clk 0:00:05]}  h2 {[%clk 0:00:11]} 56. Ne7 {[%clk 0:00:03]}  h1=Q {[%clk 0:00:12]} 57. Nxc6+ {[%clk 0:00:04]}  Qxc6+ {[%clk 0:00:12]} 58. Kb3 {[%clk 0:00:04]}  Qb5+ {[%clk 0:00:12]} 59. Ka3 {[%clk 0:00:05]}  Qb4+ {[%clk 0:00:12]} 60. Ka2 {[%clk 0:00:06]}  Kb5 {[%clk 0:00:13]} 61. Ka1 {[%clk 0:00:07]}  Kc4 {[%clk 0:00:13]} 62. Ka2 {[%clk 0:00:08]}  Kc3 {[%clk 0:00:14]} 63. Ka1 {[%clk 0:00:08]}  Qb2# {[%clk 0:00:15]} 0-1


[Site "https://www.chess.com"]

[Event "Titled Tuesday Blitz November 07 Late 2023"]
[White "Mesa Cruz, Juan Carlos"]
[Black "Suspenser17"]
[WhiteFideId "6423400"]
[WhiteElo "2307"]
[BlackElo "2426"]
[Result "1-0"]
[Round "8"]
[TimeControl "180+1"]
[Date "2023.11.07"]
[WhiteClock "0:00:05"]
[BlackClock "0:00:27"]
[Board "89"]

1. e4 {[%clk 0:03:00]}  e5 {[%clk 0:02:59]} 2. Nf3 {[%clk 0:02:29]}  Nc6 {[%clk 0:02:58]} 3. Bc4 {[%clk 0:02:29]}  Nf6 {[%clk 0:02:59]} 4. d3 {[%clk 0:02:27]}  Bc5 {[%clk 0:02:58]} 5. c3 {[%clk 0:02:26]}  O-O {[%clk 0:02:57]} 6. b4 {[%clk 0:02:22]}  Bb6 {[%clk 0:02:54]} 7. a4 {[%clk 0:02:21]}  a6 {[%clk 0:02:50]} 8. Qb3 {[%clk 0:02:17]}  d6 {[%clk 0:02:38]} 9. Nbd2 {[%clk 0:02:15]}  Qe7 {[%clk 0:02:37]} 10. Nf1 {[%clk 0:02:14]}  h6 {[%clk 0:02:35]} 11. Ng3 {[%clk 0:02:14]}  Be6 {[%clk 0:02:33]} 12. Bxe6 {[%clk 0:02:09]}  Qxe6 {[%clk 0:02:32]} 13. Qxe6 {[%clk 0:02:03]}  fxe6 {[%clk 0:02:33]} 14. O-O {[%clk 0:02:02]}  Rad8 {[%clk 0:02:30]} 15. Nd2 {[%clk 0:01:49]}  d5 {[%clk 0:02:28]} 16. a5 {[%clk 0:01:36]}  Ba7 {[%clk 0:02:27]} 17. Rb1 {[%clk 0:01:33]}  g5 {[%clk 0:02:18]} 18. b5 {[%clk 0:01:04]}  Nxa5 {[%clk 0:02:07]} 19. Ba3 {[%clk 0:01:03]}  Rf7 {[%clk 0:02:03]} 20. Bb4 {[%clk 0:00:59]}  Bb6 {[%clk 0:01:58]} 21. Ra1 {[%clk 0:00:56]}  dxe4 {[%clk 0:01:54]} 22. Bxa5 {[%clk 0:00:49]}  Bxa5 {[%clk 0:01:49]} 23. Rxa5 {[%clk 0:00:49]}  Rxd3 {[%clk 0:01:25]} 24. Ndxe4 {[%clk 0:00:45]}  Nxe4 {[%clk 0:01:19]} 25. Nxe4 {[%clk 0:00:46]}  Rd5 {[%clk 0:01:19]} 26. c4 {[%clk 0:00:27]}  Rd4 {[%clk 0:01:19]} 27. bxa6 {[%clk 0:00:27]}  bxa6 {[%clk 0:01:14]} 28. Rxe5 {[%clk 0:00:28]}  Rxc4 {[%clk 0:01:08]} 29. Rxe6 {[%clk 0:00:28]}  a5 {[%clk 0:01:06]} 30. Nf6+ {[%clk 0:00:20]}  Kg7 {[%clk 0:01:04]} 31. Nh5+ {[%clk 0:00:20]}  Kf8 {[%clk 0:01:03]} 32. Rfe1 {[%clk 0:00:20]}  Rd7 {[%clk 0:01:03]} 33. Rxh6 {[%clk 0:00:16]}  Rd6 {[%clk 0:00:45]} 34. Rh8+ {[%clk 0:00:09]}  Kf7 {[%clk 0:00:44]} 35. Ra8 {[%clk 0:00:09]}  a4 {[%clk 0:00:43]} 36. g3 {[%clk 0:00:07]}  Rd2 {[%clk 0:00:42]} 37. Re3 {[%clk 0:00:07]}  Kg6 {[%clk 0:00:40]} 38. Rh8 {[%clk 0:00:03]}  Rcc2 {[%clk 0:00:36]} 39. Re6+ {[%clk 0:00:04]}  Kf7 {[%clk 0:00:35]} 40. Rf6+ {[%clk 0:00:05]}  Ke7 {[%clk 0:00:35]} 41. Rh7+ {[%clk 0:00:05]}  Ke8 {[%clk 0:00:35]} 42. Rg6 {[%clk 0:00:03]}  Rxf2 {[%clk 0:00:32]} 43. Rg8+ {[%clk 0:00:03]}  Rf8 {[%clk 0:00:33]} 44. Nf6+ {[%clk 0:00:04]}  Kd8 {[%clk 0:00:27]} 45. Rxf8# {[%clk 0:00:05]} 1-0


[Site "https://www.chess.com"]

[Event "Titled Tuesday Blitz November 07 Late 2023"]
[White "Halak, Miklos"]
[Black "Maect19"]
[WhiteFideId "726400"]
[WhiteElo "2433"]
[BlackElo "2340"]
[Result "1-0"]
[Round "8"]
[TimeControl "180+1"]
[Date "2023.11.07"]
[WhiteClock "0:00:03"]
[BlackClock "0:00:08"]
[Board "93"]

1. e4 {[%clk 0:03:00]}  e5 {[%clk 0:02:58]} 2. Nf3 {[%clk 0:03:01]}  Nc6 {[%clk 0:02:58]} 3. Bb5 {[%clk 0:02:59]}  Nge7 {[%clk 0:02:57]} 4. O-O {[%clk 0:02:58]}  g6 {[%clk 0:02:55]} 5. d4 {[%clk 0:02:58]}  exd4 {[%clk 0:02:53]} 6. Nxd4 {[%clk 0:02:58]}  Bg7 {[%clk 0:02:54]} 7. Nxc6 {[%clk 0:02:55]}  bxc6 {[%clk 0:02:51]} 8. Bc4 {[%clk 0:02:55]}  O-O {[%clk 0:02:51]} 9. c3 {[%clk 0:02:53]}  d5 {[%clk 0:02:50]} 10. Bd3 {[%clk 0:02:51]}  a5 {[%clk 0:02:31]} 11. Bg5 {[%clk 0:02:42]}  f6 {[%clk 0:02:27]} 12. Bf4 {[%clk 0:02:39]}  dxe4 {[%clk 0:02:21]} 13. Bxe4 {[%clk 0:02:38]}  Nd5 {[%clk 0:02:19]} 14. Bxd5+ {[%clk 0:02:16]}  Qxd5 {[%clk 0:02:15]} 15. Bxc7 {[%clk 0:02:10]}  Ra7 {[%clk 0:02:09]} 16. Qxd5+ {[%clk 0:02:08]}  cxd5 {[%clk 0:02:08]} 17. Bb6 {[%clk 0:02:08]}  Rb7 {[%clk 0:02:07]} 18. Bxa5 {[%clk 0:02:02]}  Rxb2 {[%clk 0:02:07]} 19. Rd1 {[%clk 0:01:51]}  Re8 {[%clk 0:01:49]} 20. Nd2 {[%clk 0:01:42]}  Ba6 {[%clk 0:01:24]} 21. Nf3 {[%clk 0:01:11]}  Bc4 {[%clk 0:01:20]} 22. a3 {[%clk 0:01:07]}  Ree2 {[%clk 0:01:17]} 23. Rf1 {[%clk 0:01:06]}  Rec2 {[%clk 0:01:12]} 24. Nd4 {[%clk 0:00:57]}  Rd2 {[%clk 0:01:04]} 25. Nf3 {[%clk 0:00:51]}  Rdc2 {[%clk 0:01:02]} 26. Nd4 {[%clk 0:00:26]}  Rd2 {[%clk 0:00:56]} 27. Nf3 {[%clk 0:00:14]}  Re2 {[%clk 0:00:56]} 28. Nd4 {[%clk 0:00:14]}  Re8 {[%clk 0:00:51]} 29. Rfb1 {[%clk 0:00:13]}  Reb8 {[%clk 0:00:50]} 30. Rxb2 {[%clk 0:00:12]}  Rxb2 {[%clk 0:00:50]} 31. Bb4 {[%clk 0:00:13]}  f5 {[%clk 0:00:47]} 32. a4 {[%clk 0:00:13]}  Kf7 {[%clk 0:00:37]} 33. Nf3 {[%clk 0:00:10]}  h6 {[%clk 0:00:34]} 34. Rc1 {[%clk 0:00:06]}  Ra2 {[%clk 0:00:32]} 35. a5 {[%clk 0:00:06]}  g5 {[%clk 0:00:31]} 36. Nd4 {[%clk 0:00:05]}  Ke8 {[%clk 0:00:29]} 37. Nxf5 {[%clk 0:00:05]}  Bf8 {[%clk 0:00:27]} 38. Nd6+ {[%clk 0:00:01]}  Bxd6 {[%clk 0:00:26]} 39. Bxd6 {[%clk 0:00:02]}  Rxa5 {[%clk 0:00:25]} 40. Be5 {[%clk 0:00:03]}  Ra2 {[%clk 0:00:23]} 41. Bd4 {[%clk 0:00:04]}  Kf7 {[%clk 0:00:21]} 42. h3 {[%clk 0:00:05]}  h5 {[%clk 0:00:20]} 43. Rb1 {[%clk 0:00:05]}  Kg6 {[%clk 0:00:18]} 44. Kh2 {[%clk 0:00:05]}  Ra6 {[%clk 0:00:16]} 45. Kg3 {[%clk 0:00:06]}  Re6 {[%clk 0:00:16]} 46. Kf3 {[%clk 0:00:06]}  Be2+ {[%clk 0:00:15]} 47. Kg3 {[%clk 0:00:06]}  Bd3 {[%clk 0:00:15]} 48. Rb8 {[%clk 0:00:05]}  Bc4 {[%clk 0:00:15]} 49. f3 {[%clk 0:00:05]}  Kh6 {[%clk 0:00:11]} 50. Rb7 {[%clk 0:00:05]}  Kg6 {[%clk 0:00:11]} 51. Rg7+ {[%clk 0:00:05]}  Kh6 {[%clk 0:00:11]} 52. h4 {[%clk 0:00:06]}  gxh4+ {[%clk 0:00:11]} 53. Kxh4 {[%clk 0:00:07]}  Rg6 {[%clk 0:00:10]} 54. Rd7 {[%clk 0:00:06]}  Rxg2 {[%clk 0:00:09]} 55. Be3+ {[%clk 0:00:06]}  Kg6 {[%clk 0:00:09]} 56. Rd6+ {[%clk 0:00:06]}  Kf5 {[%clk 0:00:09]} 57. Bd4 {[%clk 0:00:03]}  Rh2+ {[%clk 0:00:08]} 58. Kg3 {[%clk 0:00:03]}  Rh1 {[%clk 0:00:08]} 59. Rf6+ {[%clk 0:00:04]}  Kg5 {[%clk 0:00:08]} 60. f4# {[%clk 0:00:03]} 1-0


[Site "https://www.chess.com"]